fUST/lending_fUST_20250901
["ID","MTS","AMOUNT","RATE_DAILY","PERIOD"]
[382544654,1756663640113,-480.0,0.00016797,2]
[382544655,1756663640141,-480.0,0.00016797,2]
[382544656,1756663640363,-835.31,0.00016797,2]
[382544657,1756663640391,-480.0,0.00016797,2]
[382544658,1756663640420,-480.0,0.00016797,2]
[382544659,1756663640448,-670.68,0.00016797,2]
[382544660,1756663640477,-480.0,0.00016797,2]
[382544661,1756663640504,-586.78,0.00016797,2]
[382544662,1756663640532,-1245.22,0.00016797,2]
[382544663,1756663640915,-444.03,0.00016797,2]
[382544664,1756663640942,-852.87,0.00016797,2]
[382544665,1756663640969,-222.43187667,0.00016797,2]
[382544666,1756663640998,-727.45,0.00016797,2]
[382544667,1756663641028,-653.43,0.00016797,2]
[382544668,1756663641056,-480.0,0.00016797,2]
[382544669,1756663641085,-529.02,0.00016797,2]
[382544670,1756663641115,-492.03624666,0.00016797,2]
[382544671,1756663641389,-1197.47375334,0.00016797,2]
[382544672,1756663641417,-480.0,0.00016797,2]
[382544673,1756663641446,-685.54,0.00016797,2]
[382544674,1756663641475,-920.22,0.00016797,2]
[382544675,1756663641505,-480.0,0.00016797,2]
[382544676,1756663641532,-480.0,0.00016797,2]
[382544677,1756663641562,-480.0,0.00016797,2]
[382544678,1756663641591,-73.54249332,0.00016797,2]
[382544679,1756663641723,-406.45750668,0.00016797,2]
[382544680,1756663641752,-480.0,0.00016797,2]
[382544681,1756663641780,-567.43,0.00016797,2]
[382544682,1756663641807,-480.0,0.00016797,2]
[382544683,1756663641837,-506.27,0.00016797,2]
[382544684,1756663641865,-873.52,0.00016797,2]
[382544685,1756663641897,-480.0,0.00016797,2]
[382544686,1756663641926,-690.59,0.00016797,2]
[382544687,1756663641956,-27.45498664,0.00016797,2]
[382544688,1756663642017,-976.56501336,0.00016797,2]
[382544689,1756663642047,-1000.12,0.00016797,2]
[382544690,1756663642074,-480.0,0.00016797,2]
[382544691,1756663642102,-480.0,0.00016797,2]
[382544692,1756663642130,-793.56,0.00016797,2]
[382544693,1756663642161,-480.0,0.00016797,2]
[382544694,1756663642189,-618.59997328,0.00016797,2]
[382544695,1756663642365,-342.32002672,0.00016797,2]
[382544696,1756663642395,-306.53044622,0.00016797,2]
[382544697,1756663644624,-480.0,0.00016796,2]
[382544698,1756663644634,-2517.74504668,0.00016798,2]
[382544699,1756663652704,5000.0,0.000165,2]
[382544700,1756663669697,5000.0,0.000165,2]
[382544701,1756663679518,532.96,0.00015984,2]
[382544702,1756663679977,532.96,0.00015984,2]
[382544703,1756663689233,-3934.08,0.000165,2]
[382544704,1756663689546,-1065.92,0.000165,2]
[382544705,1756663689573,-300.0,0.00016795,2]
[382544706,1756663689600,-480.0,0.00016796,2]
[382544707,1756663689626,-484.58,0.00016796,2]
[382544708,1756663689708,-339.0,0.00016796,2]
[382544709,1756663689888,-214.99,0.00016796,2]
[382544710,1756663689916,-584.35,0.00016796,2]
[382544711,1756663689944,-1271.8,0.00016796,2]
[382544712,1756663690446,-857.72,0.00016796,2]
[382544713,1756663690497,-518.3,0.00016796,2]
[382544714,1756663690588,-3963.4,0.00016797,2]
[382544715,1756663690606,-1745.73,0.00016797,2]
[382544716,1756663690616,-565.81,0.00016797,2]
[382544717,1756663690625,-807.97,0.00016797,2]
[382544718,1756663690635,-1056.16,0.00016797,2]
[382544719,1756663690645,-824.33,0.00016797,2]
[382544720,1756663690864,-48.81,0.00016797,2]
[382544721,1756663690892,-1261.16,0.00016797,2]
[382544722,1756663690935,-2380.06,0.00016797,2]
[382544723,1756663691319,-480.0,0.00016797,2]
[382544724,1756663691348,-652.64,0.00016797,2]
[382544725,1756663691378,-480.0,0.00016797,2]
[382544726,1756663691409,-751.56,0.00016797,2]
[382544727,1756663691478,-271.6,0.00016797,2]
[382544728,1756663691650,-1318.64,0.00016797,2]
[382544729,1756663691679,-615.69,0.00016797,2]
[382544730,1756663691714,-1131.34,0.00016797,2]
[382544731,1756663691963,-480.0,0.00016797,2]
[382544732,1756663692914,480.0,0.00016797,2]
[382544733,1756663694992,480.0,0.00016797,2]
[382544734,1756663700891,480.0,0.00016797,2]
[382544735,1756663703369,480.0,0.00016797,2]
[382544736,1756663708030,480.0,0.00016796,2]
[382544737,1756663708064,1640.0,0.00016798,2]
[382544738,1756663708091,3360.0,0.00016798,2]
[382544739,1756663709628,828.71,0.00016797,2]
[382544740,1756663712104,480.0,0.00016797,2]
[382544741,1756663714786,331.29,0.00016797,2]
[382544742,1756663714808,516.71,0.00016797,2]
[382544743,1756663717300,494.09,0.00016797,2]
[382544744,1756663723638,480.0,0.00016797,2]
[382544745,1756663723999,500.0,0.00016797,2]
[382544746,1756663724654,558.65,0.00016797,2]
[382544747,1756663728950,302.5322839,0.00016797,2]
[382544748,1756663729672,480.0,0.00016797,2]
[382544749,1756663730161,1668.0177161,0.00016797,2]
[382544750,1756663730185,2466.4922839,0.00016797,2]
[382544751,1756663730854,2533.5077161,0.00016798,2]
[382544752,1756663730876,2466.4922839,0.00016798,2]
[382544753,1756663736348,500.0,0.00016797,2]
[382544754,1756663736517,232.00014372,0.00016797,2]
[382544755,1756663737119,480.0,0.00016797,2]
[382544756,1756663738104,480.0,0.00016797,2]
[382544757,1756663738974,163.85006088,0.00016797,2]
[382544758,1756663739020,177.2687627,0.00016797,2]
[382544759,1756663739546,500.3887488,0.00016796,2]
[382544760,1756663739569,1260.6612512,0.00016796,2]
[382544761,1756663739772,486.53,0.00016797,2]
[382544762,1756663740104,1192.46,0.00016796,2]
[382544763,1756663742482,500.0,0.00016797,2]
[382544764,1756663742536,500.0,0.00016797,2]
[382544765,1756663742591,500.0,0.00016797,2]
[382544766,1756663742649,174.87336074,0.00016797,2]
[382544767,1756663742776,385.47538806,0.00016648,2]
[382544768,1756663742798,282.21530005,0.00016648,2]
[382544769,1756663743045,300.0,0.00016797,2]
[382544770,1756663745364,480.0,0.00016797,2]
[382544771,1756663753780,480.0,0.00016797,2]
[382544772,1756663754690,3457.78469995,0.00016797,2]
[382544773,1756663754715,1518.55530005,0.00016797,2]
[382544774,1756663754754,3481.44469995,0.00016798,2]
[382544775,1756663754780,1518.55530005,0.00016798,2]
[382544776,1756663756699,899.11,0.00016797,2]
[382544777,1756663758152,214.03548761,0.00016797,2]
[382544778,1756663761313,480.0,0.00016797,2]
[382544779,1756663761421,1754.38,0.00016796,2]
[382544780,1756663762612,133.91921234,0.00016798,2]
[382544781,1756663762635,4866.08078766,0.00016798,2]
[382544782,1756663763218,133.91921234,0.00016797,2]
[382544783,1756663763268,470.76078766,0.00016797,2]
[382544784,1756663764457,480.0,0.00016796,2]
[382544785,1756663765352,480.0,0.00016797,2]
[382544786,1756663774272,2257.96,0.00016797,2]
[382544787,1756663774473,915.0,0.00016797,2]
[382544788,1756663774730,396.27921234,0.00016796,2]
[382544789,1756663774753,83.72078766,0.00016796,2]
[382544790,1756663774995,866.44,0.00016797,2]
[382544791,1756663775459,494.9,0.00016797,2]
[382544792,1756663777857,3554.93921234,0.00016798,2]
[382544793,1756663777879,1445.06078766,0.00016798,2]
[382544794,1756663778894,480.0,0.00016797,2]
[382544795,1756663779042,480.0,0.00016797,2]
[382544796,1756663782193,480.0,0.00016796,2]
[382544797,1756663782330,744.54,0.00016796,2]
[382544798,1756663784732,1296.33,0.00016797,2]
[382544799,1756663789352,74.06921234,0.00016797,2]
[382544800,1756663789376,405.93078766,0.00016797,2]
[382544801,1756663791034,480.0,0.00016797,2]
[382544802,1756663791313,1042.9,0.00016797,2]
[382544803,1756663792515,480.0,0.00016797,2]
[382544804,1756663793410,618.75,0.00016797,2]
[382544805,1756663793438,997.0,0.00016797,2]
[382544806,1756663794211,480.0,0.00016796,2]
[382544807,1756663795446,480.0,0.00016797,2]
[382544808,1756663795995,15.41921234,0.00016797,2]
[382544809,1756663796018,464.58078766,0.00016797,2]
[382544810,1756663797582,-495.48921234,0.00016798,2]
[382544811,1756663797609,480.0,0.00016796,2]
[382544812,1756663797642,-9520.01,0.00016798,2]
[382544813,1756663797691,-10000.01,0.00016798,2]
[382544814,1756663797832,-10000.01,0.00016798,2]
[382544815,1756663797862,625.83,0.00016796,2]
[382544816,1756663800293,3429.58921234,0.00016798,2]
[382544817,1756663800317,1570.41078766,0.00016798,2]
[382544818,1756663800457,748.32,0.00016797,2]
[382544819,1756663801546,480.0,0.00016797,2]
[382544820,1756663802112,1041.59,0.00016797,2]
[382544821,1756663802381,300.0,0.00016797,2]
[382544822,1756663802995,296.0,0.00016797,2]
[382544823,1756663804593,563.67921234,0.00016797,2]
[382544824,1756663804617,425.44078766,0.00016797,2]
[382544825,1756663806581,480.0,0.00016797,2]
[382544826,1756663806745,760.49,0.00016796,2]
[382544827,1756663807488,480.0,0.00016796,2]
[382544828,1756663809357,480.0,0.00016797,2]
[382544829,1756663811671,523.97,0.00016797,2]
[382544830,1756663814886,151.15227594,0.00016681,2]
[382544831,1756663815133,151.0,0.00016798,2]
[382544832,1756663815378,480.0,0.00016797,2]
[382544833,1756663815953,480.0,0.00016797,2]
[382544834,1756663816172,151.0,0.00016798,2]
[382544835,1756663816832,436.9469364,0.00016796,2]
[382544836,1756663816855,43.0530636,0.00016796,2]
[382544837,1756663817153,151.0,0.00016798,2]
[382544838,1756663818191,164.54648587,0.00016798,2]
[382544839,1756663819199,706.73,0.00016797,2]
[382544840,1756663819912,1104.14,0.00016797,2]
[382544841,1756663821288,480.0,0.00016797,2]
[382544842,1756663822286,592.49,0.00016796,2]
[382544843,1756663823780,480.0,0.00016797,2]
[382544844,1756663824012,1278.04045053,0.00016798,2]
[382544845,1756663824035,3721.95954947,0.00016798,2]
[382544847,1756663824320,480.0,0.00016797,2]
[382544848,1756663826048,798.04045053,0.00013699,2]
[382544849,1756663826071,421.26967947,0.00013699,2]
[382544850,1756663826519,480.0,0.00016797,2]
[382544851,1756663826809,-5043.34110819,0.00016798,2]
[382544852,1756663826844,-10000.01,0.00016798,2]
[382544853,1756663826966,-10000.01,0.00016798,2]
[382544854,1756663827117,-10000.01,0.00016798,2]
[382544855,1756663827277,-10000.01,0.00016798,2]
[382544856,1756663827397,-10000.01,0.00016798,2]
[382544857,1756663827518,-10000.01,0.00016798,2]
[382544858,1756663827659,-10000.01,0.00016798,2]
[382544859,1756663828595,567.45,0.00016796,2]
[382544860,1756663828675,480.0,0.00016797,2]
[382544871,1756663831803,480.0,0.00016797,2]
[382544877,1756663831847,2571.28032053,0.00016798,2]
[382544880,1756663831872,2428.71967947,0.00016798,2]
[382544972,1756663835073,942.43,0.00016797,2]
[382544973,1756663835234,695.96,0.00016797,2]
[382544974,1756663836255,480.0,0.00016797,2]
[382544975,1756663836391,452.89032053,0.00016797,2]
[382544976,1756663836414,27.10967947,0.00016797,2]
[382544977,1756663837872,-327.15984189,0.00016798,2]
[382544978,1756663837882,-837.38,0.00016861,3]
[382544979,1756663837892,-1000.0,0.00016862,2]
[382544980,1756663837901,-151.0,0.00016862,2]
[382544981,1756663837911,-1000.0,0.00016862,2]
[382544982,1756663837921,-151.0,0.00016862,2]
[382544984,1756663837930,-151.0,0.00016862,2]
[382544986,1756663837939,-151.0,0.00016862,2]
[382544987,1756663837948,-151.0,0.00016862,2]
[382544988,1756663837957,-238.48,0.00016862,3]
[382544989,1756663837967,-279.11,0.00016862,3]
[382544990,1756663837976,-572.37,0.00016862,3]
[382544991,1756663837985,-1887.87,0.00016871,2]
[382544992,1756663837995,-3163.64,0.00016871,2]
[382544993,1756663838005,-636.1,0.00016871,2]
[382544994,1756663838014,-480.0,0.00016871,2]
[382544995,1756663838023,-910.73,0.00016871,2]
[382544996,1756663838033,-1292.35,0.00016871,2]
[382544997,1756663838042,-600.18,0.00016871,2]
[382544998,1756663838051,-214.57131235,0.00016871,2]
[382544999,1756663838060,-186.09704008,0.00016871,2]
[382545000,1756663838069,-480.0,0.00016872,2]
[382545001,1756663838078,-492.3,0.00016872,2]
[382545002,1756663838087,-480.0,0.00016872,2]
[382545003,1756663838097,-498.98,0.00016872,2]
[382545004,1756663838106,-480.0,0.00016872,2]
[382545005,1756663838115,-1166.01,0.00016872,2]
[382545006,1756663838125,-480.0,0.00016872,2]
[382545007,1756663838134,-480.0,0.00016872,2]
[382545008,1756663838144,-480.0,0.00016872,2]
[382545009,1756663838153,-480.0,0.00016872,2]
[382545010,1756663838162,-480.0,0.00016872,2]
[382545011,1756663838171,-480.0,0.00016872,2]
[382545012,1756663838181,-526.61,0.00016872,2]
[382545013,1756663838190,-1015.61,0.00016872,2]
[382545014,1756663838200,-480.0,0.00016872,2]
[382545015,1756663838209,-480.0,0.00016872,2]
[382545016,1756663838222,-480.0,0.00016872,2]
[382545017,1756663838232,-893.7,0.00016872,2]
[382545018,1756663838242,-480.0,0.00016872,2]
[382545019,1756663838251,-480.0,0.00016872,2]
[382545020,1756663838262,-480.0,0.00016872,2]
[382545021,1756663838271,-588.99,0.00016872,2]
[382545022,1756663838281,-1280.26,0.00016872,2]
[382545023,1756663838291,-480.0,0.00016872,2]
[382545024,1756663838302,-1074.17,0.00016872,2]
[382545025,1756663838311,-480.0,0.00016872,2]
[382545026,1756663838321,-480.0,0.00016872,2]
[382545027,1756663838330,-480.0,0.00016872,2]
[382545028,1756663838339,-480.0,0.00016872,2]
[382545029,1756663838348,-607.35,0.00016872,2]
[382545030,1756663838358,-499.64,0.00016872,2]
[382545031,1756663838368,-607.62937422,0.00016872,2]
[382545032,1756663838377,-1214.75,0.00016872,2]
[382545033,1756663838387,-480.0,0.00016872,2]
[382545034,1756663838396,-480.0,0.00016872,2]
[382545035,1756663838406,-600.48,0.00016872,2]
[382545036,1756663838415,-480.0,0.00016872,2]
[382545037,1756663838424,-480.0,0.00016872,2]
[382545038,1756663838433,-1129.46,0.00016872,2]
[382545039,1756663838443,-480.0,0.00016872,2]
[382545040,1756663838452,-480.0,0.00016872,2]
[382545041,1756663838461,-480.0,0.00016872,2]
[382545042,1756663838471,-480.0,0.00016872,2]
[382545043,1756663838480,-669.42,0.00016872,2]
[382545044,1756663838489,-580.15751368,0.00016872,2]
[382545045,1756663838499,-480.0,0.00016872,2]
[382545046,1756663838508,-487.47,0.00016872,2]
[382545047,1756663838518,-480.0,0.00016872,2]
[382545048,1756663838527,-480.0,0.00016872,2]
[382545049,1756663838536,-1371.46,0.00016872,2]
[382545050,1756663838546,-1039.62,0.00016872,2]
[382545051,1756663838555,-396.2415172,0.00016872,2]
[382545052,1756663838564,-479.83997074,0.00016872,2]
[382545053,1756663838574,-480.0,0.00016872,2]
[382545054,1756663838583,-480.0,0.00016872,2]
[382545055,1756663838592,-874.47,0.00016872,2]
[382545056,1756663838601,-480.0,0.00016872,2]
[382545057,1756663838610,-480.0,0.00016872,2]
[382545058,1756663838620,-480.0,0.00016872,2]
[382545059,1756663838630,-986.16,0.00016872,2]
[382545060,1756663838639,-480.0,0.00016872,2]
[382545061,1756663838648,-480.0,0.00016872,2]
[382545062,1756663838658,-480.0,0.00016872,2]
[382545063,1756663838668,-480.0,0.00016872,2]
[382545064,1756663838678,-524.75,0.00016872,2]
[382545065,1756663838688,-480.0,0.00016872,2]
[382545066,1756663838698,-480.0,0.00016872,2]
[382545067,1756663838707,-1277.35,0.00016872,2]
[382545068,1756663838717,-1064.59,0.00016872,2]
[382545069,1756663838726,-480.0,0.00016872,2]
[382545070,1756663838736,-480.0,0.00016872,2]
[382545071,1756663838745,-480.0,0.00016872,2]
[382545072,1756663838755,-269.48133979,0.00016872,2]
[382545073,1756663838765,-717.99,0.00016872,2]
[382545075,1756663838774,-480.0,0.00016872,2]
[382545076,1756663838784,-480.0,0.00016872,2]
[382545077,1756663838795,-480.0,0.00016872,2]
[382545078,1756663838808,-567.93,0.00016872,2]
[382545079,1756663838818,-480.0,0.00016872,2]
[382545080,1756663838827,-1157.17,0.00016872,2]
[382545081,1756663838836,-480.0,0.00016872,2]
[382545082,1756663838845,-480.0,0.00016872,2]
[382545083,1756663838854,-480.0,0.00016872,2]
[382545084,1756663838864,-666.75,0.00016872,2]
[382545085,1756663838873,-596.14,0.00016872,2]
[382545086,1756663838882,-480.0,0.00016872,2]
[382545087,1756663838891,-480.0,0.00016872,2]
[382545088,1756663838901,-480.0,0.00016872,2]
[382545089,1756663838910,-551.1974654,0.00016872,2]
[382545090,1756663838919,-480.0,0.00016872,2]
[382545091,1756663838929,-1198.43,0.00016872,2]
[382545092,1756663838938,-480.0,0.00016872,2]
[382545093,1756663838947,-595.33,0.00016872,2]
[382545094,1756663838957,-480.0,0.00016872,2]
[382545095,1756663838966,-480.0,0.00016872,2]
[382545096,1756663838976,-480.0,0.00016872,2]
[382545097,1756663838985,-480.0,0.00016872,2]
[382545098,1756663838996,-410.49221079,0.00016872,2]
[382545099,1756663839006,-480.0,0.00016872,2]
[382545100,1756663839016,-480.0,0.00016872,2]
[382545101,1756663839026,-500.0,0.00016872,2]
[382545102,1756663839036,-536.49,0.00016872,2]
[382545103,1756663839045,-480.0,0.00016872,2]
[382545104,1756663839055,-480.0,0.00016872,2]
[382545105,1756663839065,-480.0,0.00016872,2]
[382545106,1756663839075,-549.55,0.00016872,2]
[382545107,1756663839085,-480.0,0.00016872,2]
[382545108,1756663839094,-516.35,0.00016872,2]
[382545109,1756663839103,-480.0,0.00016872,2]
[382545110,1756663839113,-480.0,0.00016872,2]
[382545111,1756663839122,-480.0,0.00016872,2]
[382545112,1756663839132,-962.38,0.00016872,2]
[382545113,1756663839141,-552.36,0.00016872,2]
[382545114,1756663839151,-480.0,0.00016872,2]
[382545115,1756663839160,-973.51,0.00016872,2]
[382545116,1756663839169,-822.05,0.00016872,2]
[382545117,1756663839179,-480.0,0.00016872,2]
[382545118,1756663839188,-480.0,0.00016872,2]
[382545119,1756663839198,-480.0,0.00016872,2]
[382545120,1756663839207,-297.60048262,0.00016872,2]
[382545121,1756663839219,-554.79,0.00016872,2]
[382545122,1756663839229,-519.71,0.00016872,2]
[382545123,1756663839239,-1180.13,0.00016872,2]
[382545124,1756663839249,-1022.47,0.00016872,2]
[382545125,1756663839259,-480.0,0.00016872,2]
[382545126,1756663839268,-1156.67,0.00016872,2]
[382545127,1756663839278,-480.0,0.00016872,2]
[382545128,1756663839289,-480.0,0.00016872,2]
[382545129,1756663839299,-480.0,0.00016872,2]
[382545130,1756663839310,-480.0,0.00016872,2]
[382545131,1756663839321,-1145.21,0.00016872,2]
[382545132,1756663839330,-480.0,0.00016872,2]
[382545133,1756663839340,-480.0,0.00016872,2]
[382545134,1756663839350,-995.96,0.00016872,2]
[382545135,1756663839360,-1177.74,0.00016872,2]
[382545136,1756663839370,-1260.57,0.00016872,2]
[382545137,1756663839379,-480.0,0.00016872,2]
[382545138,1756663839389,-480.0,0.00016872,2]
[382545139,1756663839399,-480.0,0.00016872,2]
[382545140,1756663839408,-480.0,0.00016872,2]
[382545141,1756663839418,-480.0,0.00016872,2]
[382545142,1756663839429,-480.0,0.00016872,2]
[382545143,1756663839439,-480.0,0.00016872,2]
[382545144,1756663839448,-480.0,0.00016872,2]
[382545145,1756663839458,-508.74794958,0.00016872,2]
[382545146,1756663839468,-480.0,0.00016872,2]
[382545147,1756663839478,-480.0,0.00016872,2]
[382545148,1756663839487,-480.0,0.00016872,2]
[382545149,1756663839497,-480.0,0.00016872,2]
[382545150,1756663839507,-480.0,0.00016872,2]
[382545151,1756663839518,-480.0,0.00016872,2]
[382545152,1756663839528,-480.0,0.00016872,2]
[382545153,1756663839537,-480.0,0.00016872,2]
[382545154,1756663839549,-480.0,0.00016872,2]
[382545155,1756663839559,-480.0,0.00016872,2]
[382545156,1756663839568,-480.0,0.00016872,2]
[382545157,1756663839578,-480.0,0.00016872,2]
[382545158,1756663839588,-480.0,0.00016872,2]
[382545159,1756663839597,-480.0,0.00016872,2]
[382545160,1756663839607,-480.0,0.00016872,2]
[382545161,1756663839616,-1814.06,0.00016872,2]
[382545162,1756663839625,-480.0,0.00016872,2]
[382545163,1756663839635,-1109.88,0.00016872,2]
[382545164,1756663839645,-480.0,0.00016872,2]
[382545165,1756663839654,-533.35,0.00016872,2]
[382545166,1756663839663,-707.16,0.00016872,2]
[382545167,1756663839672,-480.0,0.00016872,2]
[382545168,1756663839681,-637.31,0.00016872,2]
[382545169,1756663839690,-480.0,0.00016872,2]
[382545170,1756663839699,-480.0,0.00016872,2]
[382545171,1756663839709,-480.0,0.00016872,2]
[382545172,1756663839718,-480.0,0.00016872,2]
[382545173,1756663839727,-1340.44,0.00016872,2]
[382545174,1756663839736,-480.0,0.00016872,2]
[382545175,1756663839746,-480.0,0.00016872,2]
[382545176,1756663839755,-480.0,0.00016872,2]
[382545177,1756663839765,-480.0,0.00016872,2]
[382545179,1756663839775,-480.0,0.00016872,2]
[382545181,1756663839784,-480.0,0.00016872,2]
[382545183,1756663839793,-480.0,0.00016872,2]
[382545185,1756663839802,-480.0,0.00016872,2]
[382545187,1756663839812,-682.71,0.00016872,2]
[382545189,1756663839821,-480.0,0.00016872,2]
[382545191,1756663839831,-480.0,0.00016872,2]
[382545193,1756663839840,-480.0,0.00016872,2]
[382545195,1756663839849,-480.0,0.00016872,2]
[382545197,1756663839858,-480.0,0.00016872,2]
[382545199,1756663839867,-480.0,0.00016872,2]
[382545201,1756663839877,-480.0,0.00016872,2]
[382545203,1756663839886,-559.12,0.00016872,2]
[382545205,1756663839896,-480.0,0.00016872,2]
[382545207,1756663839905,-480.0,0.00016872,2]
[382545209,1756663839914,-500.0,0.00016872,2]
[382545211,1756663839923,-500.0,0.00016872,2]
[382545213,1756663839933,-500.0,0.00016872,2]
[382545215,1756663839943,-500.0,0.00016896,2]
[382545217,1756663839953,-500.0,0.00016897,2]
[382545219,1756663839962,-500.0,0.00016898,2]
[382545221,1756663839972,-500.0,0.00016898,2]
[382545223,1756663839981,-151.61079302,0.00016898,2]
[382545225,1756663839990,-500.0,0.00016898,2]
[382545227,1756663839999,-480.0,0.00016899,2]
[382545229,1756663840009,-480.0,0.00016899,2]
[382545231,1756663840018,-480.0,0.00016899,2]
[382545233,1756663840028,-480.0,0.00016899,2]
[382545235,1756663840037,-832.33,0.00016899,2]
[382545237,1756663840046,-1151.41,0.00016899,2]
[382545239,1756663840056,-1230.26,0.00016899,2]
[382545241,1756663840065,-601.63,0.00016899,2]
[382545243,1756663840075,-480.0,0.00016899,2]
[382545245,1756663840084,-500.0,0.00016899,2]
[382545247,1756663840094,-500.0,0.00016899,2]
[382545249,1756663840103,-500.0,0.00016899,2]
[382545251,1756663840113,-500.0,0.00016899,2]
[382545253,1756663840123,-557.89,0.00016899,2]
[382545255,1756663840132,-780.69,0.00016899,2]
[382545257,1756663840142,-480.0,0.00016899,2]
[382545259,1756663840152,-480.0,0.00016899,2]
[382545261,1756663840162,-708.49,0.00016899,2]
[382545263,1756663840171,-480.0,0.00016899,2]
[382545265,1756663840180,-480.0,0.00016899,2]
[382545267,1756663840190,-480.0,0.00016899,2]
[382545269,1756663840199,-949.02,0.00016899,2]
[382545271,1756663840209,-480.0,0.00016899,2]
[382545273,1756663840222,-919.86,0.00016899,2]
[382545275,1756663840232,-609.32,0.00016899,2]
[382545277,1756663840241,-480.0,0.00016899,2]
[382545279,1756663840251,-480.0,0.00016899,2]
[382545281,1756663840262,-480.0,0.00016899,2]
[382545283,1756663840271,-902.55,0.00016899,2]
[382545285,1756663840280,-1588.04,0.00016899,2]
[382545308,1756663840484,-345.62403069,0.00016899,2]
[382545310,1756663840497,-480.0,0.00016899,2]
[382545312,1756663840507,-1595.22,0.00016899,2]
[382545314,1756663840517,-1595.22,0.00016899,2]
[382545316,1756663840527,-1595.22,0.00016899,2]
[382545318,1756663840536,-1595.22,0.00016899,2]
[382545320,1756663840546,-1595.22,0.00016899,2]
[382545322,1756663840556,-1595.22,0.00016899,2]
[382545324,1756663840565,-480.0,0.00016899,2]
[382545326,1756663840575,-1595.22,0.00016899,2]
[382545328,1756663840585,-1595.22,0.00016899,2]
[382545330,1756663840595,-1595.22,0.00016899,2]
[382545332,1756663840604,-1595.22,0.00016899,2]
[382545334,1756663840613,-1595.22,0.00016899,2]
[382545335,1756663840623,-1595.22,0.00016899,2]
[382545336,1756663840633,-1595.22,0.00016899,2]
[382545337,1756663840643,-1595.22,0.00016899,2]
[382545338,1756663840653,-1595.22,0.00016899,2]
[382545339,1756663840662,-1595.22,0.00016899,2]
[382545340,1756663840672,-1595.22,0.00016899,2]
[382545341,1756663840684,-1595.22,0.00016899,2]
[382545342,1756663840695,-1595.22,0.00016899,2]
[382545343,1756663840705,-699.93,0.00016899,2]
[382545344,1756663840714,-480.0,0.00016899,2]
[382545345,1756663840723,-480.0,0.00016899,2]
[382545346,1756663840733,-480.0,0.00016899,2]
[382545347,1756663840743,-480.0,0.00016899,2]
[382545348,1756663840753,-480.0,0.00016899,2]
[382545349,1756663840762,-574.16,0.00016899,2]
[382545350,1756663840771,-480.0,0.00016899,2]
[382545351,1756663840782,-480.0,0.00016899,2]
[382545352,1756663840792,-480.0,0.00016899,2]
[382545353,1756663840801,-151.0,0.000169,2]
[382545354,1756663840810,-1000.0,0.00016971,2]